Workbook

Sheet Utgifter
B3: Evenemangsbudget för [Evenemangets namn]
H4: Utgifter
H6: Beräknad | I6: Faktisk
C7: Summa utgifter | H7: =SUM(D14,D22,D28,D35,H14,H22,H27) -> 1,145.00 kr | I7: =SUM(E14,E22,E28,E35,I14,I22,I27) -> 395.00 kr
C9: Lokal | D9: Beräknad | E9: Faktisk | G9: Förfriskningar | H9: Beräknad | I9: Faktisk
C10: Avgifter för rum och sal | D10: 500.00 kr | E10: 250.00 kr | G10: Mat
C11: Personal på plats | D11: 400.00 kr | E11: 50.00 kr | G11: Dryck
C12: Utrustning | G12: Linne
C13: Bord och stolar | G13: Personal och serviceavgifter
C14: Summa | D14: =SUBTOTAL(109,Tabell1[Beräknad]) -> 900.00 kr | E14: =SUBTOTAL(109,Tabell1[Faktisk]) -> 300.00 kr | G14: Summa | H14: =SUBTOTAL(109,Tabell5[Beräknad]) -> 0.00 kr | I14: =SUBTOTAL(109,Tabell5[Faktisk]) -> 0.00 kr
C16: Dekorationer | D16: Beräknad | E16: Faktisk | G16: Program | H16: Beräknad | I16: Faktisk
C17: Blommor | D17: 200.00 kr | E17: 50.00 kr | G17: Artister
C18: Ljus | G18: Talare
C19: Belysning | G19: Resor
C20: Ballonger | G20: Hotell
C21: Pappersmaterial | G21: Övrigt
C22: Summa | D22: =SUBTOTAL(109,Tabell2[Beräknad]) -> 200.00 kr | E22: =SUBTOTAL(109,Tabell2[Faktisk]) -> 50.00 kr | G22: Summa | H22: =SUBTOTAL(109,Tabell6[Beräknad]) -> 0.00 kr | I22: =SUBTOTAL(109,Tabell6[Faktisk]) -> 0.00 kr
C24: Reklam | D24: Beräknad | E24: Faktisk | G24: Priser | H24: Beräknad | I24: Faktisk
C25: Grafik | D25: 45.00 kr | E25: 45.00 kr | G25: Band/plaketter/troféer
C26: Fotokopiering/utskrifter | G26: Gåvor
C27: Porto | G27: Summa | H27: =SUBTOTAL(109,Tabell7[Beräknad]) -> 0.00 kr | I27: =SUBTOTAL(109,Tabell7[Faktisk]) -> 0.00 kr
C28: Summa | D28: =SUBTOTAL(109,Tabell3[Beräknad]) -> 45.00 kr | E28: =SUBTOTAL(109,Tabell3[Faktisk]) -> 45.00 kr
C30: Övrigt | D30: Beräknad | E30: Faktisk
C31: Telefon
C32: Transport
C33: Kontorsmaterial
C34: Faxtjänster
C35: Summa | D35: =SUBTOTAL(109,Tabell4[Beräknad]) -> 0.00 kr | E35: =SUBTOTAL(109,Tabell4[Faktisk]) -> 0.00 kr

Sheet Intäkter
B3: Evenemangsbudget för [Evenemangets namn]
F4: Inkomst
F6: Beräknad | G6: Faktisk
B7: Summa intäkter | F7: =SUM(F14,F21,F28,F36) -> 1,936.00 kr | G7: =SUM(G14,G21,G28,G36) -> 1,831.00 kr
B9: Inträde
B10: Beräknad | C10: Faktisk | F10: Beräknad | G10: Faktisk
B11: 300 | C11: 278 | D11: Vuxna à | E11: 5.00 kr | F11: =B11*E11 -> 1,500.00 kr | G11: =C11*E11 -> 1,390.00 kr
B12: 197 | C12: 195 | D12: Barn à | E12: 2.00 kr | F12: =B12*E12 -> 394.00 kr | G12: =C12*E12 -> 390.00 kr
B13: 42 | C13: 51 | D13: Övriga à | E13: 1.00 kr | F13: =B13*E13 -> 42.00 kr | G13: =C13*E13 -> 51.00 kr
F14: =SUM(F11:F13) -> 1,936.00 kr | G14: =SUM(G11:G13) -> 1,831.00 kr
B16: Reklam i programmet
B17: Beräknad | C17: Faktisk | F17: Beräknad | G17: Faktisk
D18: Omslag à | F18: =B18*E18 -> 0.00 kr | G18: =C18*E18 -> 0.00 kr
D19: A5 à | F19: =B19*E19 -> 0.00 kr | G19: =C19*E19 -> 0.00 kr
D20: A6 à | F20: =B20*E20 -> 0.00 kr | G20: =C20*E20 -> 0.00 kr
F21: =SUM(F18:F20) -> 0.00 kr | G21: =SUM(G18:G20) -> 0.00 kr
B23: Utställare/försäljare
B24: Beräknad | C24: Faktisk | F24: Beräknad | G24: Faktisk
D25: Stora montrar à | F25: =B25*E25 -> 0.00 kr | G25: =C25*E25 -> 0.00 kr
D26: Mellanstora montrar à | F26: =B26*E26 -> 0.00 kr | G26: =C26*E26 -> 0.00 kr
D27: Små montrar à | F27: =B27*E27 -> 0.00 kr | G27: =C27*E27 -> 0.00 kr
F28: =SUM(F25:F27) -> 0.00 kr | G28: =SUM(G25:G27) -> 0.00 kr
B30: Sålda produkter
B31: Beräknad | C31: Faktisk | F31: Beräknad | G31: Faktisk
D32: Produkter à | F32: =B32*E32 -> 0.00 kr | G32: =C32*E32 -> 0.00 kr
D33: Produkter à | F33: =B33*E33 -> 0.00 kr | G33: =C33*E33 -> 0.00 kr
D34: Produkter à | F34: =B34*E34 -> 0.00 kr | G34: =C34*E34 -> 0.00 kr
D35: Produkter à | F35: =B35*E35 -> 0.00 kr | G35: =C35*E35 -> 0.00 kr
F36: =SUM(F32:F35) -> 0.00 kr | G36: =SUM(G32:G35) -> 0.00 kr

Sheet Sammanfattning
B3: Evenemangsbudget för [Evenemangets namn]
F4: Sammanfattning av vinst – förlust
F6: Beräknad | G6: Faktisk
B7: Total inkomst | F7: =Intäkter!F7 -> 1,936.00 kr | G7: =Intäkter!G7 -> 1,831.00 kr
B8: Summa utgifter | F8: =Utgifter!H7 -> 1,145.00 kr | G8: =Utgifter!I7 -> 395.00 kr
B9: Summa vinst (eller förlust) | F9: =F7-F8 -> 791.00 kr | G9: =G7-G8 -> 1,436.00 kr
